[Event "Late-Titled-Tuesday-Blitz-May-28-2024"]
[Site "Chess.com"]
[Date "2024.05.28"]
[Round "11"]
[White "Mikhail_Golubev"]
[Black "RespectfulDaveOnYouTube"]
[Result "0-1"]
[WhiteElo "2628"]
[BlackElo "2511"]
[TimeControl "180+1"]
[EndTime "16:07:26 PDT"]
[Termination "RespectfulDaveOnYouTube won on time"]

1. e4 {[%clk 0:03:00.9]} 1... d5 {[%clk 0:02:58.2]} 2. exd5 {[%clk 0:02:59.7]}
2... c6 {[%clk 0:02:58.4]} 3. d4 {[%clk 0:02:55.9]} 3... cxd5 {[%clk 0:02:58.3]}
4. Bd3 {[%clk 0:02:55.7]} 4... Nf6 {[%clk 0:02:53.9]} 5. c3 {[%clk 0:02:53.4]}
5... Bg4 {[%clk 0:02:46.8]} 6. Qb3 {[%clk 0:02:46.2]} 6... Qc8 {[%clk
0:02:45.2]} 7. h3 {[%clk 0:02:33]} 7... Bh5 {[%clk 0:02:38.4]} 8. Bf4 {[%clk
0:02:13.4]} 8... Nc6 {[%clk 0:02:32]} 9. Nd2 {[%clk 0:02:00.8]} 9... e6 {[%clk
0:02:29.2]} 10. Ngf3 {[%clk 0:01:56.2]} 10... Be7 {[%clk 0:02:27.3]} 11. O-O
{[%clk 0:01:55.2]} 11... O-O {[%clk 0:02:27.1]} 12. Rfe1 {[%clk 0:01:42.8]}
12... a6 {[%clk 0:01:28.1]} 13. a4 {[%clk 0:01:37.7]} 13... Bg6 {[%clk
0:01:18.7]} 14. Bf1 {[%clk 0:01:35.3]} 14... Ne4 {[%clk 0:01:15.9]} 15. Qd1
{[%clk 0:01:28.5]} 15... Bd6 {[%clk 0:01:06.3]} 16. Bxd6 {[%clk 0:01:14]} 16...
Nxd6 {[%clk 0:01:05.5]} 17. Nh4 {[%clk 0:01:06.7]} 17... b5 {[%clk 0:01:04.3]}
18. Nxg6 {[%clk 0:01:03.5]} 18... hxg6 {[%clk 0:01:04.6]} 19. b4 {[%clk
0:00:45.3]} 19... Ne7 {[%clk 0:00:46.1]} 20. axb5 {[%clk 0:00:24.6]} 20... Qxc3
{[%clk 0:00:37.4]} 21. bxa6 {[%clk 0:00:23.3]} 21... Qxb4 {[%clk 0:00:35.9]} 22.
Nf3 {[%clk 0:00:21.9]} 22... Nc4 {[%clk 0:00:35.2]} 23. Ne5 {[%clk 0:00:17.7]}
23... Nxe5 {[%clk 0:00:32.4]} 24. dxe5 {[%clk 0:00:18]} 24... Ra7 {[%clk
0:00:30.9]} 25. Re2 {[%clk 0:00:16.2]} 25... Nc6 {[%clk 0:00:29.4]} 26. Qc1
{[%clk 0:00:07.3]} 26... Nd4 {[%clk 0:00:25.7]} 27. Rb2 {[%clk 0:00:07.4]} 27...
Qe7 {[%clk 0:00:17.9]} 28. Qe3 {[%clk 0:00:06.4]} 28... Nf5 {[%clk 0:00:17.1]}
29. Qb6 {[%clk 0:00:05.2]} 29... Rfa8 {[%clk 0:00:15.9]} 30. Rc1 {[%clk
0:00:03.6]} 30... g5 {[%clk 0:00:10.5]} 31. g3 {[%clk 0:00:02.7]} 31... Kh7
{[%clk 0:00:09.8]} 32. Bd3 {[%clk 0:00:02.5]} 32... g6 {[%clk 0:00:09.3]} 33.
Ra1 {[%clk 0:00:01.8]} 33... Kg7 {[%clk 0:00:07.7]} 34. Bb5 {[%clk 0:00:01]}
34... Kh7 {[%clk 0:00:06.7]} 35. Qa5 {[%clk 0:00:01.1]} 35... Qc5 {[%clk
0:00:05.9]} 36. Qa4 {[%clk 0:00:01]} 36... Nd4 {[%clk 0:00:05.6]} 37. Bf1 {[%clk
0:00:00.7]} 37... Kg7 {[%clk 0:00:05.2]} 38. Qa3 {[%clk 0:00:01]} 38... Qxa3
{[%clk 0:00:05.2]} 39. Rxa3 {[%clk 0:00:01.9]} 39... Nc6 {[%clk 0:00:05.1]} 40.
Rba2 {[%clk 0:00:01.9]} 40... Nxe5 {[%clk 0:00:05.2]} 41. Rb2 {[%clk 0:00:01.1]}
41... Nc4 {[%clk 0:00:05.4]} 42. Bxc4 {[%clk 0:00:01]} 42... dxc4 {[%clk
0:00:06.3]} 43. Rba2 {[%clk 0:00:01.3]} 43... c3 {[%clk 0:00:05.5]} 44. Rxc3
{[%clk 0:00:01.4]} 44... Rxa6 {[%clk 0:00:05.7]} 45. Rxa6 {[%clk 0:00:02]} 45...
Rxa6 {[%clk 0:00:06.6]} 46. Kg2 {[%clk 0:00:02.2]} 46... f5 {[%clk 0:00:06.4]}
47. Rc7+ {[%clk 0:00:02.2]} 47... Kf6 {[%clk 0:00:06.8]} 48. Rc4 {[%clk
0:00:02.6]} 48... Ra2 {[%clk 0:00:07.2]} 49. Rb4 {[%clk 0:00:02.9]} 49... Ra6
{[%clk 0:00:06.8]} 50. Rc4 {[%clk 0:00:02.9]} 50... Rd6 {[%clk 0:00:06.8]} 51.
Rb4 {[%clk 0:00:03.1]} 51... Rc6 {[%clk 0:00:07.4]} 52. Ra4 {[%clk 0:00:03.5]}
52... e5 {[%clk 0:00:07.8]} 53. Rb4 {[%clk 0:00:03.6]} 53... Ke6 {[%clk
0:00:08.3]} 54. Rb5 {[%clk 0:00:03.8]} 54... Rd6 {[%clk 0:00:08.4]} 55. Ra5
{[%clk 0:00:04]} 55... Rd5 {[%clk 0:00:08.6]} 56. Ra6+ {[%clk 0:00:04.1]} 56...
Rd6 {[%clk 0:00:09.5]} 57. Ra5 {[%clk 0:00:04.6]} 57... e4 {[%clk 0:00:10.2]}
58. Rb5 {[%clk 0:00:04.8]} 58... Rd2 {[%clk 0:00:10.6]} 59. Ra5 {[%clk
0:00:04.9]} 59... e3 {[%clk 0:00:10.6]} 60. Ra6+ {[%clk 0:00:04.1]} 60... Ke5
{[%clk 0:00:10.6]} 61. Ra5+ {[%clk 0:00:04.1]} 61... Ke4 {[%clk 0:00:09]} 62.
Ra4+ {[%clk 0:00:04.2]} 62... Ke5 {[%clk 0:00:04.5]} 63. Ra5+ {[%clk 0:00:04.6]}
63... Kf6 {[%clk 0:00:04.7]} 64. Ra6+ {[%clk 0:00:04.7]} 64... Kg7 {[%clk
0:00:05.1]} 65. Kf3 {[%clk 0:00:04.9]} 65... exf2 {[%clk 0:00:01.9]} 66. Kg2
{[%clk 0:00:05.2]} 66... Rc2 {[%clk 0:00:01.9]} 67. Ra7+ {[%clk 0:00:04.6]}
67... Kf6 {[%clk 0:00:02.2]} 68. Ra6+ {[%clk 0:00:05]} 68... Kf7 {[%clk
0:00:02.6]} 69. Rb6 {[%clk 0:00:05.2]} 69... Rd2 {[%clk 0:00:02.4]} 70. Ra6
{[%clk 0:00:05.1]} 70... Kg7 {[%clk 0:00:02.7]} 71. Rb6 {[%clk 0:00:05.4]} 71...
Kh6 {[%clk 0:00:03.2]} 72. Ra6 {[%clk 0:00:05.4]} 72... Rb2 {[%clk 0:00:03.9]}
73. Rc6 {[%clk 0:00:05.6]} 73... Kh5 {[%clk 0:00:03.5]} 74. Rc8 {[%clk
0:00:05.8]} 74... Kh6 {[%clk 0:00:03.9]} 75. Rc7 {[%clk 0:00:05.4]} 75... f4
{[%clk 0:00:03.4]} 76. gxf4 {[%clk 0:00:04.9]} 76... gxf4 {[%clk 0:00:04.3]} 77.
Rc3 {[%clk 0:00:04.5]} 77... Kg5 {[%clk 0:00:04.2]} 78. Ra3 {[%clk 0:00:05]}
78... Kf5 {[%clk 0:00:03.4]} 79. Ra5+ {[%clk 0:00:04.5]} 79... Ke4 {[%clk
0:00:03.7]} 80. Ra3 {[%clk 0:00:04.6]} 80... g5 {[%clk 0:00:03.5]} 81. Ra4+
{[%clk 0:00:04.1]} 81... Ke3 {[%clk 0:00:03.7]} 82. Ra3+ {[%clk 0:00:04.6]}
82... Ke2 {[%clk 0:00:03.8]} 83. Ra5 {[%clk 0:00:04]} 83... f1=Q+ {[%clk
0:00:03.8]} 0-1

[Event "Late-Titled-Tuesday-Blitz-May-28-2024"]
[Site "Chess.com"]
[Date "2024.05.28"]
[Round "11"]
[White "rdarruda"]
[Black "David_ATM"]
[Result "1-0"]
[WhiteElo "2547"]
[BlackElo "2415"]
[TimeControl "180+1"]
[EndTime "16:07:36 PDT"]
[Termination "rdarruda won on time"]

1. Nf3 {[%clk 0:02:52.5]} 1... d5 {[%clk 0:02:59.4]} 2. d4 {[%clk 0:02:52.3]}
2... c6 {[%clk 0:03:00.3]} 3. c4 {[%clk 0:02:52.3]} 3... Nf6 {[%clk 0:03:00.7]}
4. e3 {[%clk 0:02:52.6]} 4... Bf5 {[%clk 0:03:00.3]} 5. Nc3 {[%clk 0:02:52.8]}
5... e6 {[%clk 0:03:00.7]} 6. Bd3 {[%clk 0:02:52.6]} 6... Bxd3 {[%clk
0:03:00.9]} 7. Qxd3 {[%clk 0:02:52.6]} 7... Be7 {[%clk 0:03:01.6]} 8. O-O {[%clk
0:02:52.2]} 8... Nbd7 {[%clk 0:03:02]} 9. e4 {[%clk 0:02:52.4]} 9... Nxe4 {[%clk
0:03:02]} 10. Nxe4 {[%clk 0:02:53.2]} 10... dxe4 {[%clk 0:03:02.9]} 11. Qxe4
{[%clk 0:02:53.4]} 11... O-O {[%clk 0:03:03.5]} 12. Bf4 {[%clk 0:02:49.9]} 12...
Qa5 {[%clk 0:03:03]} 13. a3 {[%clk 0:02:48.9]} 13... Qh5 {[%clk 0:03:02.7]} 14.
h3 {[%clk 0:02:48.3]} 14... Qg6 {[%clk 0:03:02.9]} 15. Qxg6 {[%clk 0:02:47.7]}
15... hxg6 {[%clk 0:03:03.8]} 16. Rad1 {[%clk 0:02:47.4]} 16... Nb6 {[%clk
0:02:57.9]} 17. Rc1 {[%clk 0:02:44.8]} 17... Bf6 {[%clk 0:02:57.1]} 18. Rfd1
{[%clk 0:02:44.2]} 18... Rad8 {[%clk 0:02:55.4]} 19. Be3 {[%clk 0:02:44.1]}
19... Rfe8 {[%clk 0:02:49.7]} 20. Kf1 {[%clk 0:02:44.1]} 20... Rd7 {[%clk
0:02:32.2]} 21. b3 {[%clk 0:02:42.9]} 21... Red8 {[%clk 0:02:27.2]} 22. Ke2
{[%clk 0:02:42.2]} 22... Re8 {[%clk 0:02:27.4]} 23. a4 {[%clk 0:02:41.8]} 23...
Nc8 {[%clk 0:02:18.9]} 24. g4 {[%clk 0:02:32.2]} 24... Bd8 {[%clk 0:02:12.9]}
25. Ne5 {[%clk 0:02:31.2]} 25... Rde7 {[%clk 0:02:13.4]} 26. f4 {[%clk
0:02:30.4]} 26... Bc7 {[%clk 0:02:13.6]} 27. Nf3 {[%clk 0:02:27.9]} 27... Rd7
{[%clk 0:02:12.8]} 28. Kf2 {[%clk 0:02:25]} 28... Nd6 {[%clk 0:02:12.2]} 29. Ne5
{[%clk 0:02:17.9]} 29... Rdd8 {[%clk 0:01:47.8]} 30. Kf3 {[%clk 0:02:17.3]}
30... Nc8 {[%clk 0:01:39.8]} 31. Nd3 {[%clk 0:02:13.5]} 31... Bd6 {[%clk
0:01:40.3]} 32. b4 {[%clk 0:02:09.1]} 32... Be7 {[%clk 0:01:37]} 33. a5 {[%clk
0:02:04.3]} 33... a6 {[%clk 0:01:36.6]} 34. Ne5 {[%clk 0:02:02.9]} 34... Bd6
{[%clk 0:01:35.4]} 35. Nd3 {[%clk 0:02:02.5]} 35... Be7 {[%clk 0:01:35.8]} 36.
Rb1 {[%clk 0:02:02.7]} 36... Nd6 {[%clk 0:01:35]} 37. Rdc1 {[%clk 0:01:59.7]}
37... Bf6 {[%clk 0:01:30.2]} 38. Nc5 {[%clk 0:01:57.6]} 38... Be7 {[%clk
0:01:30.6]} 39. Ne4 {[%clk 0:01:54.6]} 39... Nxe4 {[%clk 0:01:30.4]} 40. Kxe4
{[%clk 0:01:55.5]} 40... Rd7 {[%clk 0:01:30.1]} 41. b5 {[%clk 0:01:53.1]} 41...
cxb5 {[%clk 0:01:25.7]} 42. cxb5 {[%clk 0:01:54]} 42... axb5 {[%clk 0:01:15.8]}
43. Rxb5 {[%clk 0:01:54.9]} 43... Ra8 {[%clk 0:00:57.9]} 44. Bd2 {[%clk
0:01:53.5]} 44... Bd8 {[%clk 0:00:43.7]} 45. Rcb1 {[%clk 0:01:50.6]} 45... Ra7
{[%clk 0:00:38.2]} 46. Bb4 {[%clk 0:01:43.6]} 46... Be7 {[%clk 0:00:36.6]} 47.
Bc3 {[%clk 0:01:38.1]} 47... g5 {[%clk 0:00:35.5]} 48. fxg5 {[%clk 0:01:32.9]}
48... Bd8 {[%clk 0:00:11.8]} 49. h4 {[%clk 0:01:32.3]} 49... g6 {[%clk
0:00:12.3]} 50. Rd1 {[%clk 0:01:30.8]} 50... Ra8 {[%clk 0:00:06.2]} 51. d5
{[%clk 0:01:29]} 51... exd5+ {[%clk 0:00:06.2]} 52. Rbxd5 {[%clk 0:01:25.6]}
52... Rxd5 {[%clk 0:00:05.8]} 53. Rxd5 {[%clk 0:01:26.2]} 53... Bc7 {[%clk
0:00:06]} 54. Rb5 {[%clk 0:01:19.7]} 54... Bg3 {[%clk 0:00:05.1]} 55. Rxb7
{[%clk 0:01:17.1]} 55... Bxh4 {[%clk 0:00:05.7]} 56. Bd2 {[%clk 0:01:12.7]}
56... Bg3 {[%clk 0:00:04.8]} 57. Kd3 {[%clk 0:01:11.3]} 57... Rd8+ {[%clk
0:00:03.9]} 58. Kc2 {[%clk 0:01:11.3]} 58... Rc8+ {[%clk 0:00:04]} 59. Kb3
{[%clk 0:01:11.1]} 59... Ra8 {[%clk 0:00:03.9]} 60. Ka4 {[%clk 0:01:09.9]} 60...
Be5 {[%clk 0:00:03]} 61. Kb5 {[%clk 0:01:08.4]} 61... Rd8 {[%clk 0:00:03.5]} 62.
Bb4 {[%clk 0:01:06.2]} 62... Rd5+ {[%clk 0:00:02]} 63. Kc4 {[%clk 0:01:04]}
63... Rd4+ {[%clk 0:00:01.8]} 64. Kc5 {[%clk 0:01:02.8]} 64... Rxg4 {[%clk
0:00:02]} 65. a6 {[%clk 0:01:02.4]} 65... Bd4+ {[%clk 0:00:01.2]} 66. Kc6 {[%clk
0:01:01.8]} 66... Rxg5 {[%clk 0:00:01.1]} 67. a7 {[%clk 0:00:51.9]} 67... Bxa7
{[%clk 0:00:01.2]} 68. Rxa7 {[%clk 0:00:52.6]} 68... Rf5 {[%clk 0:00:01.1]} 69.
Rb7 {[%clk 0:00:52.7]} 69... g5 {[%clk 0:00:01.1]} 70. Bc3 {[%clk 0:00:52.4]}
70... Kh7 {[%clk 0:00:01]} 71. Rb1 {[%clk 0:00:48.8]} 71... Kg6 {[%clk
0:00:01.3]} 72. Rg1 {[%clk 0:00:48.5]} 72... Rf3 {[%clk 0:00:01.7]} 73. Bd4
{[%clk 0:00:47.5]} 73... Rd3 {[%clk 0:00:01.5]} 74. Kd5 {[%clk 0:00:47.1]} 74...
f5 {[%clk 0:00:01.7]} 75. Kc4 {[%clk 0:00:46.9]} 75... Rd2 {[%clk 0:00:01.7]}
76. Be3 {[%clk 0:00:46.2]} 76... Rc2+ {[%clk 0:00:01.6]} 77. Kd3 {[%clk
0:00:45.8]} 77... Rc6 {[%clk 0:00:01]} 78. Bxg5 {[%clk 0:00:45.9]} 78... f4
{[%clk 0:00:01.6]} 79. Bxf4+ {[%clk 0:00:45.7]} 79... Kf5 {[%clk 0:00:02.5]} 80.
Be3 {[%clk 0:00:45.7]} 80... Rd6+ {[%clk 0:00:02.5]} 81. Ke2 {[%clk 0:00:45.2]}
81... Rd7 {[%clk 0:00:02.9]} 82. Rg5+ {[%clk 0:00:45.3]} 82... Kf6 {[%clk
0:00:02.9]} 83. Kf3 {[%clk 0:00:45.7]} 83... Rd3 {[%clk 0:00:03]} 84. Ra5 {[%clk
0:00:45.4]} 84... Rb3 {[%clk 0:00:03.1]} 85. Ke4 {[%clk 0:00:45.5]} 85... Ke6
{[%clk 0:00:02.5]} 86. Bd4 {[%clk 0:00:45.5]} 86... Kd6 {[%clk 0:00:02.5]} 87.
Ra6+ {[%clk 0:00:45.4]} 87... Kc7 {[%clk 0:00:02.7]} 88. Kd5 {[%clk 0:00:45.7]}
88... Rb1 {[%clk 0:00:01.7]} 89. Ra7+ {[%clk 0:00:43.9]} 89... Rb7 {[%clk
0:00:02]} 90. Ra8 {[%clk 0:00:43.2]} 90... Rb1 {[%clk 0:00:02.2]} 91. Bc5 {[%clk
0:00:43.1]} 91... Rd1+ {[%clk 0:00:02.1]} 92. Bd4 {[%clk 0:00:43.6]} 92... Rb1
{[%clk 0:00:02.1]} 93. Ra6 {[%clk 0:00:41]} 93... Rc1 {[%clk 0:00:01.3]} 94.
Ra7+ {[%clk 0:00:39.8]} 94... Kb8 {[%clk 0:00:01.3]} 95. Rh7 {[%clk 0:00:39.3]}
95... Kc8 {[%clk 0:00:01.7]} 96. Bc5 {[%clk 0:00:39.4]} 96... Kd8 {[%clk
0:00:01.4]} 97. Kc6 {[%clk 0:00:34.7]} 97... Ke8 {[%clk 0:00:01.2]} 98. Kd5
{[%clk 0:00:31.8]} 98... Rd1+ {[%clk 0:00:01]} 99. Ke5 {[%clk 0:00:29.5]} 99...
Re1+ {[%clk 0:00:01]} 100. Kd5 {[%clk 0:00:28]} 100... Rd1+ {[%clk 0:00:01.4]}
101. Bd4 {[%clk 0:00:27.7]} 1-0

[Event "Late-Titled-Tuesday-Blitz-May-28-2024"]
[Site "Chess.com"]
[Date "2024.05.28"]
[Round "11"]
[White "rezamahdavi2008"]
[Black "Grischuk"]
[Result "0-1"]
[WhiteElo "2986"]
[BlackElo "3127"]
[TimeControl "180+1"]
[EndTime "16:07:39 PDT"]
[Termination "Grischuk won by resignation"]

1. e4 {[%clk 0:03:00.9]} 1... e5 {[%clk 0:02:58.5]} 2. Nf3 {[%clk 0:03:01.3]}
2... Nc6 {[%clk 0:02:59.2]} 3. Nc3 {[%clk 0:03:01.7]} 3... Nf6 {[%clk
0:02:59.7]} 4. d4 {[%clk 0:03:02.3]} 4... exd4 {[%clk 0:03:00.6]} 5. Nxd4 {[%clk
0:03:03]} 5... Bb4 {[%clk 0:03:01.1]} 6. Nxc6 {[%clk 0:03:03.7]} 6... bxc6
{[%clk 0:03:02]} 7. Bd3 {[%clk 0:03:04.4]} 7... d5 {[%clk 0:03:02.7]} 8. Bd2
{[%clk 0:03:04.5]} 8... O-O {[%clk 0:03:02.7]} 9. O-O {[%clk 0:03:05.1]} 9...
Rb8 {[%clk 0:03:01.9]} 10. Re1 {[%clk 0:03:05.1]} 10... Re8 {[%clk 0:03:02]} 11.
exd5 {[%clk 0:03:01.4]} 11... Rxe1+ {[%clk 0:03:00.3]} 12. Qxe1 {[%clk
0:03:01.8]} 12... cxd5 {[%clk 0:03:00.6]} 13. a3 {[%clk 0:03:02.4]} 13... Bf8
{[%clk 0:02:54]} 14. b4 {[%clk 0:03:02.4]} 14... c5 {[%clk 0:02:47.3]} 15. bxc5
{[%clk 0:02:57.9]} 15... Bxc5 {[%clk 0:02:47]} 16. Bg5 {[%clk 0:02:57.4]} 16...
Be6 {[%clk 0:02:41.9]} 17. h3 {[%clk 0:02:36.5]} 17... h6 {[%clk 0:02:38.1]} 18.
Bf4 {[%clk 0:02:33.9]} 18... Bd6 {[%clk 0:02:14.8]} 19. Bxd6 {[%clk 0:02:30.4]}
19... Qxd6 {[%clk 0:02:15.7]} 20. Nb5 {[%clk 0:02:31.3]} 20... Qb6 {[%clk
0:01:56.5]} 21. Rb1 {[%clk 0:02:29.8]} 21... Qc5 {[%clk 0:01:22.4]} 22. Qa5
{[%clk 0:02:11.9]} 22... Ne4 {[%clk 0:01:17.6]} 23. Rf1 {[%clk 0:01:50.4]} 23...
Bd7 {[%clk 0:00:48.2]} 24. a4 {[%clk 0:01:30.8]} 24... Bc6 {[%clk 0:00:41.4]}
25. Qc7 {[%clk 0:01:22]} 25... Qb6 {[%clk 0:00:36.3]} 26. Qxb6 {[%clk
0:00:34.8]} 26... Rxb6 {[%clk 0:00:31.4]} 27. Nxa7 {[%clk 0:00:27.9]} 27... Bxa4
{[%clk 0:00:31.5]} 28. Nc8 {[%clk 0:00:25.2]} 28... Re6 {[%clk 0:00:23.1]} 29.
Ra1 {[%clk 0:00:24.5]} 29... Nc3 {[%clk 0:00:17.1]} 30. Ra3 {[%clk 0:00:22.7]}
30... d4 {[%clk 0:00:17.3]} 31. Bc4 {[%clk 0:00:18.5]} 31... Re1+ {[%clk
0:00:14.6]} 32. Kh2 {[%clk 0:00:18.9]} 32... Bxc2 {[%clk 0:00:12.9]} 33. Ra8
{[%clk 0:00:18.3]} 33... Kh7 {[%clk 0:00:07.4]} 34. Bxf7 {[%clk 0:00:12.4]}
34... d3 {[%clk 0:00:05]} 35. Nd6 {[%clk 0:00:05.4]} 35... d2 {[%clk 0:00:05.4]}
36. Bg8+ {[%clk 0:00:05.4]} 36... Kg6 {[%clk 0:00:05.6]} 37. Ra6 {[%clk
0:00:04.4]} 37... d1=Q {[%clk 0:00:03.5]} 38. Ne4+ {[%clk 0:00:02.6]} 38... Kf5
{[%clk 0:00:03]} 39. Bh7+ {[%clk 0:00:01.9]} 39... Ke5 {[%clk 0:00:02.6]} 40.
Nxc3 {[%clk 0:00:02.6]} 40... Qd4 {[%clk 0:00:01]} 41. Ra5+ {[%clk 0:00:02.4]}
41... Kf6 {[%clk 0:00:01.5]} 42. Nd5+ {[%clk 0:00:02]} 42... Qxd5 {[%clk
0:00:01.5]} 43. Rxd5 {[%clk 0:00:02.9]} 43... Bxh7 {[%clk 0:00:01.9]} 44. Rd6+
{[%clk 0:00:03.6]} 44... Re6 {[%clk 0:00:02]} 45. Rd4 {[%clk 0:00:03.5]} 45...
Re2 {[%clk 0:00:01.7]} 46. Kg3 {[%clk 0:00:03.3]} 46... Bf5 {[%clk 0:00:02.1]}
47. Rd6+ {[%clk 0:00:03.7]} 47... Be6 {[%clk 0:00:02.3]} 48. Ra6 {[%clk
0:00:04.3]} 48... Ra2 {[%clk 0:00:03]} 49. Rb6 {[%clk 0:00:04]} 49... Ra3+
{[%clk 0:00:03.2]} 50. f3 {[%clk 0:00:02.7]} 50... Ra2 {[%clk 0:00:04.1]} 51.
Rc6 {[%clk 0:00:02.9]} 51... Ke5 {[%clk 0:00:04]} 52. Rc7 {[%clk 0:00:02.6]}
52... Kf6 {[%clk 0:00:04.4]} 53. Rc6 {[%clk 0:00:03]} 53... Ra5 {[%clk
0:00:03.7]} 54. Rb6 {[%clk 0:00:03.4]} 54... Ra7 {[%clk 0:00:03.8]} 55. Rc6
{[%clk 0:00:03.7]} 55... Ke5 {[%clk 0:00:03.8]} 56. Rb6 {[%clk 0:00:04]} 56...
Bd5 {[%clk 0:00:03.6]} 57. Rb5 {[%clk 0:00:04.3]} 57... Kd4 {[%clk 0:00:03]} 58.
Rb6 {[%clk 0:00:04.8]} 58... Bc4 {[%clk 0:00:03.3]} 59. Rg6 {[%clk 0:00:05.4]}
59... Ke3 {[%clk 0:00:03]} 60. Rg4 {[%clk 0:00:05.1]} 60... Bd3 {[%clk 0:00:03]}
61. h4 {[%clk 0:00:04.8]} 61... g6 {[%clk 0:00:03]} 62. Rb4 {[%clk 0:00:03.9]}
62... Ra2 {[%clk 0:00:02.5]} 63. Rb6 {[%clk 0:00:03.9]} 63... h5 {[%clk
0:00:02.2]} 64. Re6+ {[%clk 0:00:02.2]} 64... Kd4 {[%clk 0:00:02.5]} 65. Kh2
{[%clk 0:00:01.7]} 65... Bf5 {[%clk 0:00:02.2]} 66. Rd6+ {[%clk 0:00:02.2]}
66... Ke3 {[%clk 0:00:02.1]} 67. Rb6 {[%clk 0:00:01.9]} 67... Kf2 {[%clk
0:00:02]} 68. Rc6 {[%clk 0:00:01.3]} 68... Bd3 {[%clk 0:00:01.8]} 69. Rd6 {[%clk
0:00:01.1]} 69... Bf5 {[%clk 0:00:02.1]} 70. Rc6 {[%clk 0:00:01.4]} 70... Rc2
{[%clk 0:00:02.6]} 71. Rb6 {[%clk 0:00:01.4]} 71... Rd2 {[%clk 0:00:02.2]} 72.
Rc6 {[%clk 0:00:01.6]} 72... Re2 {[%clk 0:00:02]} 73. Rb6 {[%clk 0:00:02]} 73...
Kf1 {[%clk 0:00:02]} 74. Kg3 {[%clk 0:00:01]} 74... Rxg2+ {[%clk 0:00:02.2]} 75.
Kf4 {[%clk 0:00:01.9]} 75... Kg1 {[%clk 0:00:02.5]} 76. Ke3 {[%clk 0:00:01.6]}
76... Kh2 {[%clk 0:00:02.9]} 77. Kf4 {[%clk 0:00:02.1]} 77... Kh3 {[%clk
0:00:02.7]} 78. Ra6 {[%clk 0:00:02.6]} 78... Kxh4 {[%clk 0:00:02.2]} 79. Ra1
{[%clk 0:00:03.5]} 79... Kh3 {[%clk 0:00:02.7]} 80. Ke3 {[%clk 0:00:02.8]} 80...
Kg3 {[%clk 0:00:02.9]} 81. Ra5 {[%clk 0:00:02.7]} 81... h4 {[%clk 0:00:03]} 0-1